[Event "*** Titled Tuesday Blitz"]
[Site "Chess.com"]
[Date "2020.05.05"]
[Round "4"]
[White "eightbyeightchess"]
[Black "konradrutkowski"]
[Result "1-0"]
[WhiteElo "2411"]
[BlackElo "2178"]
[TimeControl "180+1"]
[EndTime "10:39:41 PDT"]
[Termination "eightbyeightchess won by resignation"]

1. e4 {[%clk 0:03:00.9]} 1... e5 {[%clk 0:02:59.3]} 2. Nf3 {[%clk 0:03:01]} 2...
Nc6 {[%clk 0:02:56.9]} 3. Bb5 {[%clk 0:03:01.3]} 3... a6 {[%clk 0:02:55.8]} 4.
Ba4 {[%clk 0:03:01.3]} 4... Nf6 {[%clk 0:02:56]} 5. d4 {[%clk 0:03:00.6]} 5...
exd4 {[%clk 0:02:54]} 6. O-O {[%clk 0:02:59.7]} 6... Be7 {[%clk 0:02:40.8]} 7.
Re1 {[%clk 0:02:58.9]} 7... b5 {[%clk 0:02:37.1]} 8. Bb3 {[%clk 0:02:58.3]} 8...
d6 {[%clk 0:02:29.6]} 9. Bd5 {[%clk 0:02:57.2]} 9... Nxd5 {[%clk 0:02:05.6]} 10.
exd5 {[%clk 0:02:58.1]} 10... Ne5 {[%clk 0:02:05.7]} 11. Nxd4 {[%clk 0:02:55.9]}
11... Bd7 {[%clk 0:02:03.4]} 12. a4 {[%clk 0:02:49.2]} 12... O-O {[%clk
0:02:02.4]} 13. Nc3 {[%clk 0:02:49]} 13... b4 {[%clk 0:01:58.3]} 14. Ne4 {[%clk
0:02:48.2]} 14... f5 {[%clk 0:01:54.4]} 15. Ng3 {[%clk 0:02:40.4]} 15... f4
{[%clk 0:01:19.7]} 16. Ne4 {[%clk 0:02:38.5]} 16... Qe8 {[%clk 0:01:03.1]} 17.
f3 {[%clk 0:02:35.8]} 17... Qh5 {[%clk 0:01:00.7]} 18. b3 {[%clk 0:02:13]} 18...
Bh4 {[%clk 0:00:59.7]} 19. Re2 {[%clk 0:02:08.3]} 19... Rae8 {[%clk 0:01:00]}
20. Bd2 {[%clk 0:02:01.2]} 20... g5 {[%clk 0:00:58.1]} 21. Be1 {[%clk
0:01:50.9]} 21... Bxe1 {[%clk 0:00:56.6]} 22. Qxe1 {[%clk 0:01:51.8]} 22... g4
{[%clk 0:00:57]} 23. fxg4 {[%clk 0:01:47.2]} 23... Bxg4 {[%clk 0:00:56.2]} 24.
Rf2 {[%clk 0:01:44.3]} 24... Kh8 {[%clk 0:00:55.9]} 25. Qxb4 {[%clk 0:01:37.3]}
25... f3 {[%clk 0:00:45.7]} 26. Ng3 {[%clk 0:01:15.3]} 26... Qg6 {[%clk
0:00:40.7]} 27. Nxf3 {[%clk 0:01:05.5]} 27... Nxf3+ {[%clk 0:00:38.5]} 28. gxf3
{[%clk 0:01:04.1]} 28... Rxf3 {[%clk 0:00:38.9]} 29. Rxf3 {[%clk 0:00:57.4]}
29... Bxf3 {[%clk 0:00:37.3]} 30. Qc3+ {[%clk 0:00:57.5]} 30... Qg7 {[%clk
0:00:36.3]} 31. Qxg7+ {[%clk 0:00:52.5]} 31... Kxg7 {[%clk 0:00:37.2]} 32. Rf1
{[%clk 0:00:48.7]} 32... Bxd5 {[%clk 0:00:35.5]} 33. Nh5+ {[%clk 0:00:48]} 33...
Kg6 {[%clk 0:00:33.4]} 34. Nf4+ {[%clk 0:00:46.7]} 34... Kh6 {[%clk 0:00:30.1]}
35. Nxd5 {[%clk 0:00:47.6]} 1-0

[Event "*** Titled Tuesday Blitz"]
[Site "Chess.com"]
[Date "2020.05.05"]
[Round "4"]
[White "Riptide27"]
[Black "Sanan_Sjugirov"]
[Result "0-1"]
[WhiteElo "2536"]
[BlackElo "2854"]
[TimeControl "180+1"]
[EndTime "10:39:46 PDT"]
[Termination "Sanan_Sjugirov won by resignation"]

1. d4 {[%clk 0:03:00.9]} 1... d5 {[%clk 0:02:59.8]} 2. Nf3 {[%clk 0:02:59.3]}
2... e6 {[%clk 0:02:59.8]} 3. Bf4 {[%clk 0:02:58.1]} 3... c5 {[%clk 0:02:59.8]}
4. e3 {[%clk 0:02:58.2]} 4... Qb6 {[%clk 0:02:59.8]} 5. Qc1 {[%clk 0:02:55.4]}
5... Nf6 {[%clk 0:02:54.8]} 6. c3 {[%clk 0:02:54.5]} 6... Nc6 {[%clk 0:02:54]}
7. Nbd2 {[%clk 0:02:53.2]} 7... Nh5 {[%clk 0:02:53.2]} 8. Bg3 {[%clk 0:02:51.1]}
8... Bd7 {[%clk 0:02:48.2]} 9. Bd3 {[%clk 0:02:46.7]} 9... h6 {[%clk 0:02:44.3]}
10. a3 {[%clk 0:02:40.9]} 10... Rc8 {[%clk 0:02:42.3]} 11. O-O {[%clk
0:02:32.4]} 11... Nxg3 {[%clk 0:02:41.2]} 12. hxg3 {[%clk 0:02:31.5]} 12... Be7
{[%clk 0:02:40.4]} 13. dxc5 {[%clk 0:02:18.2]} 13... Bxc5 {[%clk 0:02:33.2]} 14.
e4 {[%clk 0:02:12.1]} 14... dxe4 {[%clk 0:02:30]} 15. Nxe4 {[%clk 0:02:10.3]}
15... Be7 {[%clk 0:02:30]} 16. c4 {[%clk 0:02:07.2]} 16... Nd4 {[%clk
0:02:22.8]} 17. b4 {[%clk 0:01:36.2]} 17... Nxf3+ {[%clk 0:02:04.5]} 18. gxf3
{[%clk 0:01:37.1]} 18... O-O {[%clk 0:02:03.7]} 19. c5 {[%clk 0:01:36.1]} 19...
Qc7 {[%clk 0:02:03.8]} 20. Qe3 {[%clk 0:01:24.5]} 20... f5 {[%clk 0:01:53.5]}
21. Nd2 {[%clk 0:01:14.1]} 21... f4 {[%clk 0:01:51.7]} 22. Qe4 {[%clk
0:01:10.8]} 22... Rf6 {[%clk 0:01:30.2]} 23. Qh7+ {[%clk 0:00:56.4]} 23... Kf7
{[%clk 0:01:30.1]} 24. g4 {[%clk 0:00:50.9]} 24... Bc6 {[%clk 0:01:09.7]} 25.
Rae1 {[%clk 0:00:33.9]} 25... Rd8 {[%clk 0:01:02.8]} 26. Nc4 {[%clk 0:00:32.6]}
26... Rd5 {[%clk 0:01:00.1]} 27. Be4 {[%clk 0:00:19.6]} 27... Rg5 {[%clk
0:01:00]} 28. Bxc6 {[%clk 0:00:20.5]} 28... bxc6 {[%clk 0:01:00.7]} 29. Re4
{[%clk 0:00:19.6]} 29... h5 {[%clk 0:00:58.2]} 30. Rfe1 {[%clk 0:00:20.1]} 30...
Rh6 {[%clk 0:00:54.7]} 31. Ne5+ {[%clk 0:00:21]} 31... Rxe5 {[%clk 0:00:52.5]}
0-1

[Event "*** Titled Tuesday Blitz"]
[Site "Chess.com"]
[Date "2020.05.05"]
[Round "4"]
[White "MasterKroket"]
[Black "HanSchut"]
[Result "1-0"]
[WhiteElo "2433"]
[BlackElo "2234"]
[TimeControl "180+1"]
[EndTime "10:39:48 PDT"]
[Termination "MasterKroket won by checkmate"]

1. d4 {[%clk 0:03:00.9]} 1... Nf6 {[%clk 0:02:58.7]} 2. c4 {[%clk 0:03:00.9]}
2... g6 {[%clk 0:02:58.9]} 3. Nc3 {[%clk 0:03:00.5]} 3... d5 {[%clk 0:02:59.5]}
4. cxd5 {[%clk 0:03:01.4]} 4... Nxd5 {[%clk 0:02:59.9]} 5. e4 {[%clk 0:03:02.2]}
5... Nxc3 {[%clk 0:03:00.4]} 6. bxc3 {[%clk 0:03:03.1]} 6... Bg7 {[%clk
0:03:00.9]} 7. Be3 {[%clk 0:03:03.9]} 7... c5 {[%clk 0:03:01.5]} 8. Qd2 {[%clk
0:03:04.5]} 8... Qa5 {[%clk 0:03:01.7]} 9. Nf3 {[%clk 0:03:04.6]} 9... Nc6
{[%clk 0:03:01.3]} 10. Rb1 {[%clk 0:03:01.5]} 10... b6 {[%clk 0:02:28.1]} 11.
Rb5 {[%clk 0:02:57.2]} 11... Qa3 {[%clk 0:02:27.7]} 12. Rb3 {[%clk 0:02:54.5]}
12... Qa5 {[%clk 0:02:27.2]} 13. Bb5 {[%clk 0:02:50.6]} 13... Bd7 {[%clk
0:02:23.3]} 14. d5 {[%clk 0:02:48.1]} 14... Ne5 {[%clk 0:02:00.1]} 15. Bxd7+
{[%clk 0:02:34.5]} 15... Nxd7 {[%clk 0:01:59.7]} 16. c4 {[%clk 0:02:18.6]} 16...
Qxd2+ {[%clk 0:01:53.5]} 17. Nxd2 {[%clk 0:02:13.8]} 17... O-O {[%clk
0:01:28.9]} 18. f4 {[%clk 0:02:13.2]} 18... e6 {[%clk 0:01:22.6]} 19. Ke2 {[%clk
0:01:51.1]} 19... Rfe8 {[%clk 0:01:09.9]} 20. Kf3 {[%clk 0:01:51.1]} 20... exd5
{[%clk 0:00:36.8]} 21. cxd5 {[%clk 0:01:52]} 21... Nf6 {[%clk 0:00:30.4]} 22.
Bf2 {[%clk 0:01:48]} 22... Rad8 {[%clk 0:00:27.3]} 23. Re1 {[%clk 0:01:42.4]}
23... h5 {[%clk 0:00:26]} 24. h3 {[%clk 0:01:38.4]} 24... Rd7 {[%clk 0:00:25.3]}
25. g4 {[%clk 0:01:37.1]} 25... hxg4+ {[%clk 0:00:24.3]} 26. hxg4 {[%clk
0:01:37.6]} 26... Rde7 {[%clk 0:00:22]} 27. g5 {[%clk 0:01:34.9]} 27... Nxd5
{[%clk 0:00:19.4]} 28. exd5 {[%clk 0:01:34.2]} 28... Rxe1 {[%clk 0:00:19]} 29.
Bxe1 {[%clk 0:01:30.1]} 29... Rxe1 {[%clk 0:00:19.9]} 30. Ne4 {[%clk 0:01:23.7]}
30... Rd1 {[%clk 0:00:16.3]} 31. d6 {[%clk 0:01:19.4]} 31... Bf8 {[%clk
0:00:16.4]} 32. Nf6+ {[%clk 0:01:04.7]} 32... Kg7 {[%clk 0:00:16.3]} 33. Ke2
{[%clk 0:01:01.7]} 33... Rd4 {[%clk 0:00:12.7]} 34. Rh3 {[%clk 0:00:58.1]} 34...
Bxd6 {[%clk 0:00:06.8]} 35. Rh7+ {[%clk 0:00:58]} 35... Kf8 {[%clk 0:00:07.2]}
36. Rh8+ {[%clk 0:00:58.7]} 36... Ke7 {[%clk 0:00:07.7]} 37. Re8# {[%clk
0:00:59.3]} 1-0

[Event "*** Titled Tuesday Blitz"]
[Site "Chess.com"]
[Date "2020.05.05"]
[Round "4"]
[White "WastefulJustice"]
[Black "yarosavich"]
[Result "0-1"]
[WhiteElo "2357"]
[BlackElo "2703"]
[TimeControl "180+1"]
[EndTime "10:39:49 PDT"]
[Termination "yarosavich won by resignation"]

1. e4 {[%clk 0:03:00.9]} 1... e5 {[%clk 0:02:58.3]} 2. Nf3 {[%clk 0:03:01]} 2...
Nc6 {[%clk 0:02:58.5]} 3. Bb5 {[%clk 0:02:59.8]} 3... a6 {[%clk 0:02:58.3]} 4.
Ba4 {[%clk 0:02:59.9]} 4... Nf6 {[%clk 0:02:57.6]} 5. O-O {[%clk 0:02:59.4]}
5... Be7 {[%clk 0:02:56.2]} 6. Re1 {[%clk 0:02:59.2]} 6... d6 {[%clk 0:02:54.4]}
7. c3 {[%clk 0:02:58.4]} 7... Bg4 {[%clk 0:02:53.5]} 8. h3 {[%clk 0:02:58]} 8...
Bh5 {[%clk 0:02:53.4]} 9. d3 {[%clk 0:02:56.7]} 9... Nd7 {[%clk 0:02:53.5]} 10.
Nbd2 {[%clk 0:02:56.1]} 10... Nc5 {[%clk 0:02:53.2]} 11. Bc2 {[%clk 0:02:51]}
11... Ne6 {[%clk 0:02:52.6]} 12. Nf1 {[%clk 0:02:50.8]} 12... Ng5 {[%clk
0:02:51.3]} 13. Bxg5 {[%clk 0:02:47.9]} 13... Bxg5 {[%clk 0:02:52]} 14. Ng3
{[%clk 0:02:48.5]} 14... Bxf3 {[%clk 0:02:51.5]} 15. Qxf3 {[%clk 0:02:48.3]}
15... g6 {[%clk 0:02:52.1]} 16. Rad1 {[%clk 0:02:46.7]} 16... Qf6 {[%clk
0:02:52.5]} 17. Qe2 {[%clk 0:02:42]} 17... Nd8 {[%clk 0:02:50.3]} 18. d4 {[%clk
0:02:41.8]} 18... Ne6 {[%clk 0:02:49.9]} 19. dxe5 {[%clk 0:02:37.7]} 19... dxe5
{[%clk 0:02:48.9]} 20. Qc4 {[%clk 0:02:25.2]} 20... c6 {[%clk 0:02:43]} 21. Rd6
{[%clk 0:02:01.3]} 21... O-O {[%clk 0:02:36.9]} 22. Nf5 {[%clk 0:01:47.7]} 22...
Rfd8 {[%clk 0:02:17.5]} 23. Red1 {[%clk 0:01:14.3]} 23... Rxd6 {[%clk
0:02:17.5]} 24. Nxd6 {[%clk 0:01:13.6]} 24... Qe7 {[%clk 0:02:13.8]} 25. Qb4
{[%clk 0:00:39.1]} 25... Rb8 {[%clk 0:02:11.7]} 26. Bb3 {[%clk 0:00:35.5]} 26...
Kg7 {[%clk 0:01:57]} 27. a4 {[%clk 0:00:22.3]} 27... b6 {[%clk 0:01:36.5]} 28.
g3 {[%clk 0:00:18.8]} 28... a5 {[%clk 0:01:26.3]} 29. Qa3 {[%clk 0:00:08.1]}
29... Rd8 {[%clk 0:01:10.4]} 30. h4 {[%clk 0:00:08.4]} 30... Bf6 {[%clk
0:01:07.2]} 31. Bxe6 {[%clk 0:00:06]} 31... Qxe6 {[%clk 0:01:03.7]} 32. Kg2
{[%clk 0:00:04.9]} 32... Be7 {[%clk 0:01:03.5]} 33. Nf5+ {[%clk 0:00:03.8]}
33... gxf5 {[%clk 0:01:02.8]} 34. exf5 {[%clk 0:00:03.7]} 34... Bxa3 {[%clk
0:01:02.2]} 0-1

[Event "*** Titled Tuesday Blitz"]
[Site "Chess.com"]
[Date "2020.05.05"]
[Round "4"]
[White "MattyDPerrine"]
[Black "Koksik_13"]
[Result "0-1"]
[WhiteElo "2367"]
[BlackElo "2600"]
[TimeControl "180+1"]
[EndTime "10:39:50 PDT"]
[Termination "Koksik_13 won on time"]

1. Nf3 {[%clk 0:03:00.9]} 1... e6 {[%clk 0:03:00.8]} 2. c4 {[%clk 0:02:59.8]}
2... d5 {[%clk 0:03:00.8]} 3. g3 {[%clk 0:02:58.2]} 3... Nf6 {[%clk 0:03:00.4]}
4. Bg2 {[%clk 0:02:57.3]} 4... Be7 {[%clk 0:03:00.7]} 5. O-O {[%clk 0:02:54.1]}
5... O-O {[%clk 0:02:59.9]} 6. b3 {[%clk 0:02:42.8]} 6... b6 {[%clk 0:02:59.4]}
7. Bb2 {[%clk 0:02:42.7]} 7... Bb7 {[%clk 0:02:59.6]} 8. e3 {[%clk 0:02:42.9]}
8... c5 {[%clk 0:02:58]} 9. Nc3 {[%clk 0:02:41.2]} 9... Nc6 {[%clk 0:02:58.2]}
10. cxd5 {[%clk 0:02:35.4]} 10... Nxd5 {[%clk 0:02:56.9]} 11. Nxd5 {[%clk
0:02:35.2]} 11... exd5 {[%clk 0:02:57.7]} 12. d4 {[%clk 0:02:33.7]} 12... Bf6
{[%clk 0:02:57]} 13. Qd2 {[%clk 0:02:28.2]} 13... Rc8 {[%clk 0:02:51]} 14. dxc5
{[%clk 0:02:19.4]} 14... bxc5 {[%clk 0:02:51.9]} 15. Bxf6 {[%clk 0:02:01.6]}
15... Qxf6 {[%clk 0:02:51.3]} 16. Qxd5 {[%clk 0:02:00.3]} 16... Rfd8 {[%clk
0:02:14.6]} 17. Qg5 {[%clk 0:01:29]} 17... Qb2 {[%clk 0:02:11.7]} 18. Qf4 {[%clk
0:01:05.5]} 18... h6 {[%clk 0:02:04.6]} 19. Rfc1 {[%clk 0:00:54.9]} 19... Re8
{[%clk 0:01:36.8]} 20. Qa4 {[%clk 0:00:45.1]} 20... Nb4 {[%clk 0:01:34.5]} 21.
Qxa7 {[%clk 0:00:24.4]} 21... Be4 {[%clk 0:01:29.4]} 22. Ne1 {[%clk 0:00:16.7]}
22... Bg6 {[%clk 0:01:18.1]} 23. a3 {[%clk 0:00:11.8]} 23... Nc6 {[%clk
0:01:12.9]} 24. Qxc5 {[%clk 0:00:09.2]} 24... Na7 {[%clk 0:01:00.7]} 25. Qd4
{[%clk 0:00:05.4]} 25... Qxc1 {[%clk 0:00:51.5]} 26. Rxc1 {[%clk 0:00:05]} 26...
Rxc1 {[%clk 0:00:52.4]} 27. Kf1 {[%clk 0:00:02.3]} 27... Nb5 {[%clk 0:00:49.1]}
0-1

[Event "*** Titled Tuesday Blitz"]
[Site "Chess.com"]
[Date "2020.05.05"]
[Round "4"]
[White "Nakachuk"]
[Black "Baby_Legs"]
[Result "1/2-1/2"]
[WhiteElo "2873"]
[BlackElo "2681"]
[TimeControl "180+1"]
[EndTime "10:39:51 PDT"]
[Termination "Game drawn by repetition"]

1. Nf3 {[%clk 0:03:00.9]} 1... d5 {[%clk 0:02:59.6]} 2. g3 {[%clk 0:03:01]} 2...
Nf6 {[%clk 0:02:59.5]} 3. Bg2 {[%clk 0:03:01.3]} 3... c5 {[%clk 0:02:57.5]} 4.
O-O {[%clk 0:03:01.3]} 4... h6 {[%clk 0:02:58]} 5. d3 {[%clk 0:03:00.8]} 5...
Nc6 {[%clk 0:02:57.4]} 6. Nbd2 {[%clk 0:03:00.8]} 6... e5 {[%clk 0:02:51.8]} 7.
e4 {[%clk 0:03:01.1]} 7... d4 {[%clk 0:02:52.1]} 8. Nc4 {[%clk 0:03:01.6]} 8...
Bd6 {[%clk 0:02:51.7]} 9. Nxd6+ {[%clk 0:02:59.4]} 9... Qxd6 {[%clk 0:02:52.6]}
10. Nh4 {[%clk 0:02:58.9]} 10... g5 {[%clk 0:02:35.7]} 11. Nf5 {[%clk
0:02:58.5]} 11... Bxf5 {[%clk 0:02:35.7]} 12. exf5 {[%clk 0:02:59.4]} 12...
O-O-O {[%clk 0:02:35.4]} 13. Bd2 {[%clk 0:02:56.7]} 13... Kb8 {[%clk 0:02:35.1]}
14. a3 {[%clk 0:02:55.6]} 14... Nd5 {[%clk 0:02:27.9]} 15. Rb1 {[%clk
0:02:54.6]} 15... a5 {[%clk 0:02:24]} 16. Qf3 {[%clk 0:02:51.8]} 16... f6 {[%clk
0:02:12.6]} 17. c4 {[%clk 0:02:48.9]} 17... dxc3 {[%clk 0:01:47.4]} 18. bxc3
{[%clk 0:02:48.3]} 18... Nde7 {[%clk 0:01:43.1]} 19. Be3 {[%clk 0:02:47.3]}
19... Qd5 {[%clk 0:01:37.3]} 20. Qxd5 {[%clk 0:02:40]} 20... Nxd5 {[%clk
0:01:37.1]} 21. Bxc5 {[%clk 0:02:40.7]} 21... Kc8 {[%clk 0:01:22.6]} 22. Rfc1
{[%clk 0:02:36.8]} 22... Rh7 {[%clk 0:01:20.8]} 23. d4 {[%clk 0:02:26.7]} 23...
exd4 {[%clk 0:01:17.9]} 24. cxd4 {[%clk 0:02:27.6]} 24... Rhd7 {[%clk
0:01:15.4]} 25. Bb6 {[%clk 0:02:21.2]} 25... Nxb6 {[%clk 0:00:55.8]} 26. Bxc6
{[%clk 0:02:18]} 26... bxc6 {[%clk 0:00:48.5]} 27. Rxc6+ {[%clk 0:02:18.9]}
27... Rc7 {[%clk 0:00:49]} 28. Rbxb6 {[%clk 0:02:18.7]} 28... Rxd4 {[%clk
0:00:47.1]} 29. Rxc7+ {[%clk 0:02:19]} 29... Kxc7 {[%clk 0:00:48]} 30. Rxf6
{[%clk 0:02:19.9]} 30... Ra4 {[%clk 0:00:46.7]} 31. Rxh6 {[%clk 0:02:20]} 31...
Rxa3 {[%clk 0:00:47.3]} 32. Kg2 {[%clk 0:02:17.8]} 32... a4 {[%clk 0:00:47]} 33.
f6 {[%clk 0:02:15.9]} 33... Kd7 {[%clk 0:00:46.1]} 34. f7 {[%clk 0:02:07.1]}
34... Ke7 {[%clk 0:00:45.9]} 35. Rf6 {[%clk 0:02:07.4]} 35... Kf8 {[%clk
0:00:45.5]} 36. h4 {[%clk 0:02:07.6]} 36... gxh4 {[%clk 0:00:45]} 37. gxh4
{[%clk 0:02:08.5]} 37... Rb3 {[%clk 0:00:44.1]} 38. h5 {[%clk 0:02:08.5]} 38...
Rb5 {[%clk 0:00:43.3]} 39. h6 {[%clk 0:02:08.4]} 39... Rh5 {[%clk 0:00:43.5]}
40. Kg3 {[%clk 0:02:07]} 40... a3 {[%clk 0:00:43.9]} 41. Kg4 {[%clk 0:02:06.9]}
41... a2 {[%clk 0:00:44.1]} 42. Ra6 {[%clk 0:02:02.3]} 42... Rxh6 {[%clk
0:00:44.5]} 43. Rxa2 {[%clk 0:02:00.8]} 43... Kxf7 {[%clk 0:00:45.1]} 44. Ra7+
{[%clk 0:01:59.5]} 44... Kf8 {[%clk 0:00:44.4]} 45. f4 {[%clk 0:01:59.9]} 45...
Rb6 {[%clk 0:00:44.1]} 46. Kg5 {[%clk 0:02:00.1]} 46... Rc6 {[%clk 0:00:44.3]}
47. f5 {[%clk 0:02:00.2]} 47... Rb6 {[%clk 0:00:44.7]} 48. Ra8+ {[%clk
0:02:00.4]} 48... Kf7 {[%clk 0:00:44.2]} 49. Rh8 {[%clk 0:02:01]} 49... Kg7
{[%clk 0:00:42.7]} 50. Rd8 {[%clk 0:01:59.6]} 50... Kf7 {[%clk 0:00:41.2]} 51.
Rd7+ {[%clk 0:01:59.8]} 51... Kf8 {[%clk 0:00:41.2]} 52. Rc7 {[%clk 0:01:59.3]}
52... Ra6 {[%clk 0:00:39.3]} 53. Rc5 {[%clk 0:01:58.8]} 53... Rb6 {[%clk
0:00:39.5]} 54. Ra5 {[%clk 0:01:58.7]} 54... Rc6 {[%clk 0:00:39.4]} 55. Kf4
{[%clk 0:01:59.4]} 55... Rb6 {[%clk 0:00:39.3]} 56. Ke5 {[%clk 0:02:00.1]} 56...
Kf7 {[%clk 0:00:39.6]} 57. Ra7+ {[%clk 0:02:00.1]} 57... Kf8 {[%clk 0:00:39.4]}
58. Rh7 {[%clk 0:01:59.5]} 58... Kg8 {[%clk 0:00:39.3]} 59. Re7 {[%clk
0:01:59.6]} 59... Kf8 {[%clk 0:00:39.6]} 60. Re6 {[%clk 0:02:00.3]} 60... Rb7
{[%clk 0:00:38.7]} 61. Kf6 {[%clk 0:01:58.3]} 61... Rf7+ {[%clk 0:00:38.6]} 62.
Kg6 {[%clk 0:01:57.8]} 62... Rg7+ {[%clk 0:00:38.3]} 63. Kf6 {[%clk 0:01:58.4]}
63... Rf7+ {[%clk 0:00:38.5]} 64. Kg5 {[%clk 0:01:59]} 64... Rg7+ {[%clk
0:00:34.8]} 65. Rg6 {[%clk 0:01:58.6]} 65... Rb7 {[%clk 0:00:34.6]} 66. Re6
{[%clk 0:01:55.8]} 66... Rg7+ {[%clk 0:00:33.6]} 67. Kf6 {[%clk 0:01:55.3]}
67... Rf7+ {[%clk 0:00:33.7]} 1/2-1/2

[Event "*** Titled Tuesday Blitz"]
[Site "Chess.com"]
[Date "2020.05.05"]
[Round "4"]
[White "SirMittensofMittensville"]
[Black "JessPinkman"]
[Result "1-0"]
[WhiteElo "2668"]
[BlackElo "2469"]
[TimeControl "180+1"]
[EndTime "10:39:51 PDT"]
[Termination "SirMittensofMittensville won on time"]

1. e4 {[%clk 0:03:00.9]} 1... c5 {[%clk 0:02:56.8]} 2. c3 {[%clk 0:03:01]} 2...
Nf6 {[%clk 0:02:56.3]} 3. e5 {[%clk 0:03:01.1]} 3... Nd5 {[%clk 0:02:56.4]} 4.
Bc4 {[%clk 0:03:01.7]} 4... e6 {[%clk 0:02:55.5]} 5. Nf3 {[%clk 0:03:01.5]} 5...
d6 {[%clk 0:02:48.4]} 6. d4 {[%clk 0:03:01.6]} 6... cxd4 {[%clk 0:02:48.4]} 7.
cxd4 {[%clk 0:03:02.5]} 7... Be7 {[%clk 0:02:48.7]} 8. Qe2 {[%clk 0:03:02.7]}
8... O-O {[%clk 0:02:48.5]} 9. O-O {[%clk 0:03:03.4]} 9... Nd7 {[%clk
0:02:48.2]} 10. Bd2 {[%clk 0:02:59.8]} 10... N7b6 {[%clk 0:02:42.6]} 11. Bd3
{[%clk 0:02:53.3]} 11... Bd7 {[%clk 0:02:42.5]} 12. Qe4 {[%clk 0:02:52]} 12...
f5 {[%clk 0:02:34.9]} 13. exf6 {[%clk 0:02:50.9]} 13... Nxf6 {[%clk 0:02:35.4]}
14. Qh4 {[%clk 0:02:46.7]} 14... Qe8 {[%clk 0:02:16.1]} 15. Bg5 {[%clk
0:02:39.9]} 15... h6 {[%clk 0:02:06.4]} 16. Bxf6 {[%clk 0:02:05.7]} 16... Bxf6
{[%clk 0:02:07.3]} 17. Qe4 {[%clk 0:02:05.8]} 17... Qh5 {[%clk 0:01:39.2]} 18.
Nc3 {[%clk 0:01:43.8]} 18... Qf5 {[%clk 0:01:16.5]} 19. Qe3 {[%clk 0:01:33]}
19... Qh5 {[%clk 0:01:09.7]} 20. Ne4 {[%clk 0:01:20.6]} 20... Nd5 {[%clk
0:00:54.6]} 21. Qd2 {[%clk 0:01:16.4]} 21... Be7 {[%clk 0:00:48.4]} 22. Ng3
{[%clk 0:01:16.3]} 22... Qf7 {[%clk 0:00:35.2]} 23. Rfe1 {[%clk 0:01:13.2]}
23... Rac8 {[%clk 0:00:25.8]} 24. Rad1 {[%clk 0:01:09.4]} 24... Nf4 {[%clk
0:00:18]} 25. Be4 {[%clk 0:01:01]} 25... Bc6 {[%clk 0:00:12.5]} 26. Re3 {[%clk
0:00:50.6]} 26... Bxe4 {[%clk 0:00:08.2]} 27. Nxe4 {[%clk 0:00:51.5]} 27... Rc6
{[%clk 0:00:06.6]} 28. Nc3 {[%clk 0:00:48.6]} 28... Rcc8 {[%clk 0:00:01.8]} 29.
Rde1 {[%clk 0:00:42.8]} 1-0

[Event "*** Titled Tuesday Blitz"]
[Site "Chess.com"]
[Date "2020.05.05"]
[Round "4"]
[White "olksuna"]
[Black "PenguinPacks"]
[Result "1-0"]
[WhiteElo "2592"]
[BlackElo "2343"]
[TimeControl "180+1"]
[EndTime "10:39:51 PDT"]
[Termination "olksuna won by resignation"]

1. e4 {[%clk 0:03:00.9]} 1... c5 {[%clk 0:02:58.6]} 2. b3 {[%clk 0:02:59.5]}
2... g6 {[%clk 0:02:57.1]} 3. Bb2 {[%clk 0:02:58.9]} 3... Nf6 {[%clk 0:02:56.9]}
4. e5 {[%clk 0:02:57.9]} 4... Nd5 {[%clk 0:02:56.5]} 5. Nf3 {[%clk 0:02:58.3]}
5... Bg7 {[%clk 0:02:55.5]} 6. Bc4 {[%clk 0:02:57.3]} 6... Nb6 {[%clk
0:02:54.4]} 7. O-O {[%clk 0:02:56.7]} 7... Nxc4 {[%clk 0:02:52.9]} 8. bxc4
{[%clk 0:02:56.1]} 8... Nc6 {[%clk 0:02:53.3]} 9. d3 {[%clk 0:02:55.7]} 9... O-O
{[%clk 0:02:52.1]} 10. Re1 {[%clk 0:02:55.5]} 10... d5 {[%clk 0:02:50]} 11. cxd5
{[%clk 0:02:49.4]} 11... Qxd5 {[%clk 0:02:48.4]} 12. Nbd2 {[%clk 0:02:50.3]}
12... Bg4 {[%clk 0:02:46.1]} 13. h3 {[%clk 0:02:50.1]} 13... Be6 {[%clk
0:02:44.3]} 14. Qe2 {[%clk 0:02:39.1]} 14... b6 {[%clk 0:02:43.2]} 15. Ng5
{[%clk 0:02:35.2]} 15... Bf5 {[%clk 0:02:37.9]} 16. Ndf3 {[%clk 0:02:32.8]}
16... h6 {[%clk 0:02:23.9]} 17. Ne4 {[%clk 0:02:32.6]} 17... Rfd8 {[%clk
0:01:56]} 18. Qe3 {[%clk 0:02:08.1]} 18... Nd4 {[%clk 0:01:47.9]} 19. Bxd4
{[%clk 0:01:57.7]} 19... cxd4 {[%clk 0:01:48.8]} 20. Qf4 {[%clk 0:01:58.1]}
20... Rac8 {[%clk 0:01:44.3]} 21. Re2 {[%clk 0:01:53.8]} 21... Bd7 {[%clk
0:00:54.1]} 22. h4 {[%clk 0:01:38.5]} 22... h5 {[%clk 0:00:25.1]} 23. Rae1
{[%clk 0:01:15.9]} 23... Bg4 {[%clk 0:00:25.3]} 24. Neg5 {[%clk 0:01:13]} 24...
Qxa2 {[%clk 0:00:20]} 25. Re4 {[%clk 0:00:59.2]} 25... Qxc2 {[%clk 0:00:13.6]}
26. Nxd4 {[%clk 0:00:58.5]} 26... Qxd3 {[%clk 0:00:12.3]} 27. Qxf7+ {[%clk
0:00:52.7]} 27... Kh8 {[%clk 0:00:12.8]} 28. Qxg6 {[%clk 0:00:51.7]} 28... Kg8
{[%clk 0:00:12.8]} 29. Qh7+ {[%clk 0:00:44.8]} 29... Kf8 {[%clk 0:00:12.2]} 30.
Rf4+ {[%clk 0:00:45.5]} 30... Ke8 {[%clk 0:00:12.7]} 31. Qxd3 {[%clk 0:00:44.2]}
1-0